[Event "1000GM Memorial Day NY IM-C 2023"]
[Site "New York"]
[Date "2023.05.26"]
[Round "2.3"]
[White "Mou, Iris"]
[Black "Reiss, Aiden"]
[Result "1-0"]
[ECO "B40"]
[WhiteElo "2002"]
[BlackElo "2138"]
[Annotator "TA"]
[PlyCount "53"]
[EventDate "2023.05.23"]
[EventType "tourn"]
[EventCountry "USA"]
[SourceTitle "playchess.com"]
[Source "ChessBase"]
[SourceQuality "1"]
[TimeControl "5400+30"]

{[%evp 9,53,19,43,-1,25,28,30,35,35,41,39,22,18,14,21,30,27,27,21,25,25,25,34,22,174,181,160,175,165,89,84,80,135,120,641,658,658,630,628,550,622,607,1046,1039,29987,29988]} 1. e4 {[%emt 0:00:02]} c5 {[%emt 0:01:21]} 2. Nf3 {[%emt 0:00:08]} e6 {[%emt 0:00:56]} 3. b3 {[%emt 0:00:52]} Nc6 {[%emt 0:00:15]} 4. Bb2 {[%emt 0:01:55]} Nf6 {[%emt 0:00:11]} 5. e5 {[%emt 1:30:03]} Nd5 {[%emt 0:01:29]} 6. Nc3 {[%emt 0:00:00] B40: Sicilian: 2...e6, Unusual lines.} Nxc3 {[%emt 0:09:42]} 7. dxc3 {[%emt 0:00:00]} Be7 {[%emt 0:13:04]} 8. Bd3 {[%emt 0:00:00] [#] White has an edge.} Qa5 $146 {[%emt 0:04:54][%cal Oc5c4]} ({Predecessor:} 8... d5 9. exd6 Qxd6 10. Qe2 Qf4 11. Bc1 Qf6 12. Bd2 O-O 13. O-O-O c4 14. Be4 Ba3+ {1-0 Ismail,M (2211)-Pousada Garcia,D (2077) Cambridge op 2023 (5)}) 9. Qe2 {[%emt 0:00:00]} Nd4 {[%emt 0:01:34]} 10. Qe4 {[%emt 0:00:00]} Nxf3+ {[%emt 0:01:03]} 11. Qxf3 {[%emt 0:00:00]} c4 {[%emt 0:00:53][%mdl 64] Discovered Attack} 12. Bxc4 {[%emt 0:00:00]} Qxe5+ {[%emt 0:00:18]} 13. Be2 {[%emt 0:00:00]} O-O {[%emt 0:05:18]} 14. O-O-O {[%emt 0:00:00]} Bf6 {[%emt 0:15:48]} 15. h4 {[%emt 0:00:00]} d5 {[%emt 0:00:49]} 16. g4 {[%emt 0:00:00]} Bxh4 $2 {[%emt 0:05:18]} 17. c4 {[%emt 0:00:00][%mdl 64] Discovered Attack} Bg5+ {[%emt 0:00:34]} 18. Kb1 {[%emt 0:00:00]} Qf4 {[%emt 0:01:37] [#]} 19. Qh3 {[%emt 0:00:00]} (19. cxd5 Qxf3 20. Bxf3 exd5 $16) ({Better is} 19. Qg2 $1 $18) 19... h6 $16 {[%emt 0:01:08]} (19... Bh6 $2 20. Bc1 Qe5 21. Bxh6 gxh6 22. Qxh6 $18) 20. cxd5 $40 {[%emt 0:00:00][%mdl 128] White has strong attack. White is more active.} (20. Qc3 Bf6 21. Qd2 Qxd2 22. Rxd2 Bxb2 23. Kxb2 dxc4 $15) 20... exd5 {[%emt 0:03:09]} (20... Qxf2 $142 21. Bf3 (21. Qc3 Bf6 $15) 21... Qb6) 21. Rxd5 {[%emt 0:00:00] And now Bc1 would win.} ({Much worse is} 21. Qc3 $6 Bf6 22. Qf3 Qxf3 23. Bxf3 Bxb2 24. Kxb2 Be6 $11) 21... f6 $2 {[%emt 0:09:34][%mdl 8192]} (21... Be6 $16 22. Bc1 (22. Qc3 Bf6 $15) 22... Qxc1+ 23. Rxc1 Bxd5) 22. Bc4 $18 {[%emt 0:00:00] Black is weak on the light squares} Kh8 {[%emt 0:01:09]} 23. f3 {[%emt 0:00:00]} b5 {[%emt 0:06:07]} 24. Rxb5 {[%emt 0:00:00] Qh5 would be deadly.} Bd7 {[%emt 0:00:44]} 25. Rd5 {[%emt 0:00:00]} Bc8 {[%emt 0:03:08]} 26. Qh5 {[%emt 0:00:00][%cal Od5g5] Threatening mate with Rxg5!} Rb8 {[%emt 0:03:01] [#]} 27. Rxg5 $1 {[%emt 0:00:00][%mdl 576] Pin.   Weighted Error Value: White=0.15 (very precise) /Black=0.54} 1-0

[Event "1000GM Memorial Day NY IM-C 2023"]
[Site "New York"]
[Date "2023.05.26"]
[Round "2.4"]
[White "Moor, Nathaniel Philip"]
[Black "Lee, Megan"]
[Result "1-0"]
[ECO "D45"]
[WhiteElo "2185"]
[BlackElo "2261"]
[Annotator "TA"]
[PlyCount "52"]
[EventDate "2023.05.23"]
[EventType "tourn"]
[EventCountry "USA"]
[SourceTitle "playchess.com"]
[Source "ChessBase"]
[SourceQuality "1"]
[TimeControl "5400+30"]

{[%evp 14,52,-2,0,13,13,33,37,50,0,0,-2,-20,0,46,54,106,92,149,116,160,134,210,91,552,529,654,433,522,309,465,445,1281,1256,1777,1697,29994,29995,29998,29996,29999]} 1. d4 {[%emt 0:00:01]} Nf6 {[%emt 0:00:09]} 2. Nf3 {[%emt 0:00:09]} d5 {[%emt 0:00:18]} 3. c4 {[%emt 0:00:13]} c6 {[%emt 0:00:46]} 4. e3 {[%emt 0:00:08]} e6 {[%emt 0:02:00]} 5. Nc3 {[%emt 0:00:06]} Nbd7 {[%emt 0:02:46]} 6. Qc2 {[%emt 0:01:18]} Bd6 {[%emt 0:04:14]} 7. g4 {[%emt 0:04:18]} Nxg4 {[%emt 0:10:20]} 8. Rg1 $1 {[%emt 0:08:28]} h5 {[%emt 0:06:02] D45: Semi-Slav: 5 e3.} 9. h3 {[%emt 0:04:40]} Nh6 {[%emt 0:02:51]} (9... Qf6 {looks sharper.} 10. Be2 Nh2 11. Ng5 Ng4) 10. e4 {[%emt 0:14:50]} (10. Rxg7 $2 Qf6 11. Rg5 Qxf3 $19) 10... dxe4 {[%emt 0:03:43] White is slightly better.} 11. Qxe4 {[%emt 0:04:38]} (11. Nxe4 $14 Bb4+ 12. Bd2 Bxd2+ 13. Qxd2) 11... Nf6 {[%emt 0:05:40]} 12. Qc2 {[%emt 0:02:04]} Nf5 {[%emt 0:10:12]} 13. Bd3 {[%emt 0:02:21] [#]} O-O $146 {[%emt 0:05:39]} (13... b5 $11) ({Predecessor:} 13... Bb4 14. Bxf5 exf5 15. Rxg7 Be6 16. Qd3 Ne4 17. Bd2 Nxd2 18. Kxd2 Qf6 19. Rgg1 O-O-O {1-0 Ikeda,J (2349)-Sidhant,M (2155) Wch U20 50th 2011 (9)}) 14. Bg5 $14 {[%emt 0:03:30]} Be7 {[%emt 0:42:50]} (14... b5 $14) 15. O-O-O $16 {[%emt 0:01:42][%cal Od4d5]} Qc7 {[%emt 0:00:00] [#]} (15... Nxd4 $2 16. Nxd4 (16. Bh7+ Nxh7 17. Rxd4 Qxd4 $15) 16... Qc7 17. Bh6 $18) (15... Nh7 $142 16. Bxe7 Qxe7) 16. d5 $1 {[%emt 0:12:43][%mdl 512] Strongly threatening Bxf5. White is more active.} cxd5 {[%emt 0:00:00]} (16... Ne8 17. dxe6) 17. cxd5 {[%emt 0:01:35] Bxf5 would be deadly.} Nd6 {[%emt 0:00:00] [#]} (17... Ne8 $16) 18. Kb1 {[%emt 0:04:59]} (18. Qd2 $1 $18 {aiming for Bh6.} Nxd5 19. Bh6) 18... Kh8 $2 {[%emt 0:00:00][%mdl 8192] A mistake that costs the game.} (18... Rd8 $16) 19. Qe2 $18 {[%emt 0:04:57]} Nde8 {[%emt 0:00:00]} 20. Nd4 {[%emt 0:05:28]} Qb6 {[%emt 0:00:00]} 21. Bc2 {[%emt 0:09:25]} Bd7 {[%emt 0:00:57]} (21... g6 $142 22. dxe6 Bxe6 23. Bxg6 (23. Nxe6 Qxe6 24. Qxe6 fxe6 $18) 23... Rg8) 22. Ne4 {[%emt 0:02:34] Threatening mate with Bxf6.} e5 {[%emt 0:01:32] [#]} (22... Ba3 $142 23. Nb3 Nxe4 24. Bxe4 (24. bxa3 $2 {loses.} Nc3+ 25. Kb2 Nxe2 $19) 24... f5) 23. d6 $1 {[%emt 0:00:29][%mdl 512]} exd4 {[%emt 0:01:28]} (23... Qa6 24. dxe7) 24. Nxf6 {[%emt 0:01:30]} Nxf6 {[%emt 0:00:05]} 25. Bxf6 {[%emt 0:00:28]} Be6 {[%emt 0:00:57]} 26. Qd3 {[%emt 0:00:02][%csl Gc2][%cal Rd3h7][%mdl 64] Double Attack} Bg4 {[%emt 0:00:17] Excellently played by Moor!   Weighted Error Value: White=0.31/Black=1.11} 1-0

[Event "1000GM Memorial Day NY IM-C 2023"]
[Site "New York"]
[Date "2023.05.26"]
[Round "2.5"]
[White "Mahajan, Rushaan"]
[Black "Zumsande, Martin"]
[Result "1-0"]
[ECO "E06"]
[WhiteElo "2279"]
[BlackElo "2454"]
[Annotator "TA"]
[PlyCount "93"]
[EventDate "2023.05.23"]
[EventType "tourn"]
[EventCountry "USA"]
[SourceTitle "playchess.com"]
[Source "ChessBase"]
[SourceQuality "1"]
[TimeControl "5400+30"]

{[%evp 12,93,0,-2,12,11,8,0,0,0,0,10,15,16,14,5,19,22,32,33,31,4,4,15,8,1,8,-2,11,0,62,63,229,216,239,242,235,239,235,228,254,250,276,286,288,288,285,288,281,279,280,262,280,239,239,236,251,251,251,209,292,287,325,237,350,326,520,505,683,693,683,661,574,604,716,648,746,729,1115,1061,29966,29967,6528,6528]} 1. Nf3 {[%emt 0:00:02]} d5 {[%emt 0:00:06]} 2. g3 {[%emt 0:00:04]} Nf6 {[%emt 0:00:12]} 3. Bg2 {[%emt 0:00:03]} e6 {[%emt 0:00:05]} 4. c4 {[%emt 0:00:03]} Be7 {[%emt 0:00:17]} 5. d4 {[%emt 0:00:04]} O-O {[%emt 0:00:12]} 6. Nc3 {[%emt 0:00:03]} dxc4 {[%emt 0:00:08]} 7. Ne5 {[%emt 0:00:04]} Qd6 {[%emt 0:00:04] E06: Closed Catalan: Early deviations.} 8. Nxc4 {[%emt 0:01:22]} Qa6 {[%emt 0:00:17]} (8... Qb4 9. Qd3 Rd8 10. b3 $16) 9. Qb3 {[%emt 0:10:52]} Nc6 {[%emt 0:04:23] The position is equal.} 10. e3 {[%emt 0:03:32]} Rb8 {[%emt 0:05:48]} 11. a4 {[%emt 0:12:57]} Na5 {[%emt 0:09:24]} (11... Bd7 {with more complications.} 12. O-O b5 13. Nxb5 Nxd4 14. exd4 Bxb5 15. axb5 Qxa1 16. Ne5 Qa6) 12. Nxa5 {[%emt 0:00:14]} Qxa5 {[%emt 0:00:04] [#]} 13. Qb5 $146 {[%emt 0:00:44]} ({Predecessor:} 13. O-O c5 14. dxc5 Bd7 15. e4 Qxc5 16. Bf4 e5 17. Be3 Qb4 18. Qxb4 Bxb4 19. Bxa7 {1-0 Afonasieva,A (2303)-Petrukhina,O (2166) Korolev 2019 (3)}) 13... Qb4 {[%emt 0:02:28]} 14. Bd2 {[%emt 0:03:58][%cal Oc3d5] Nd5! is the strong threat.} Bd7 {[%emt 0:02:38]} 15. Qxb4 {[%emt 0:00:07]} Bxb4 {[%emt 0:00:05]} 16. Ke2 {[%emt 0:00:51]} c5 {[%emt 0:02:52]} 17. dxc5 {[%emt 0:02:49]} Bxc5 {[%emt 0:02:23]} 18. Rhd1 {[%emt 0:00:55]} Rfc8 {[%emt 0:07:10]} 19. Rac1 {[%emt 0:03:37]} h5 {[%emt 0:09:10]} 20. Be1 {[%emt 0:02:35]} Kf8 {[%emt 0:08:16]} (20... Bc6 $11 21. e4 a6) 21. Ne4 $14 {[%emt 0:03:30][%mdl 64] Discovered Attack, Deflection} Nxe4 {[%emt 0:07:04] This move loses the game for Black.} ({Better is} 21... Be7 $14) 22. Rxd7 $18 {[%emt 0:00:11]} Ke8 {[%emt 0:02:49] [#]} 23. Rd3 $1 {[%emt 0:00:15]} ({Don't play} 23. Rcd1 $6 Nf6 24. Rxb7 Rxb7 25. Bxb7 Rb8) 23... Nd6 {[%emt 0:03:31] [#]} 24. Rxc5 $1 {[%emt 0:02:39][%mdl 512]} Rxc5 {[%emt 0:00:13]} 25. Rxd6 {[%emt 0:00:04]} Rc2+ {[%emt 0:02:23]} 26. Rd2 {[%emt 0:00:23]} Rc1 {[%emt 0:00:35]} 27. Be4 {[%emt 0:01:28]} b6 {[%emt 0:02:23]} 28. Rc2 {[%emt 0:02:46]} Rxc2+ {[%emt 0:00:19]} 29. Bxc2 {[%emt 0:00:02]} Rc8 {[%emt 0:00:16]} 30. Bc3 {[%emt 0:00:20]} Ke7 {[%emt 0:00:45]} 31. Bd3 {[%emt 0:00:59]} f6 {[%emt 0:02:36]} 32. Kd2 {[%emt 0:00:23]} h4 {[%emt 0:02:23]} 33. b4 {[%emt 0:01:16][%cal Bb2b4,Bb4a5][%mdl 32]} ({Resist} 33. gxh4 $6 Rh8 $16) 33... hxg3 {[%emt 0:00:15]} 34. hxg3 {[%emt 0:00:02]} ({Don't do} 34. fxg3 $6 g5 35. h3 Rg8 $18) 34... Kd6 {[%emt 0:00:39]} 35. a5 {[%emt 0:00:26]} bxa5 {[%emt 0:01:18]} 36. bxa5 {[%emt 0:01:35]} e5 {[%emt 0:00:17]} 37. Be4 {[%emt 0:04:07] Black must now prevent a6.} Rc4 {[%emt 0:01:45]} (37... Kc5 $142 38. f4 Rd8+ 39. Bd3 Kd6) 38. f3 {[%emt 0:00:46]} Ra4 {[%emt 0:03:37]} (38... Rc8 $142 39. Bb4+ Ke6) 39. Kc2 {[%emt 0:00:35] Strongly threatening Kb3.} Ra2+ {[%emt 0:00:43]} 40. Kb3 {[%emt 0:00:14]} Rf2 {[%emt 0:01:52]} 41. Bb4+ {[%emt 0:00:44]} Kc7 {[%emt 0:00:35]} 42. Bc5 {[%emt 0:01:11]} a6 {[%emt 0:00:36]} 43. Bb6+ {[%emt 0:02:23]} Kb8 {[%emt 0:01:00]} 44. g4 {[%emt 0:00:16]} g6 {[%emt 0:00:19]} 45. Bxg6 {[%emt 0:00:39]} Rxf3 {[%emt 0:00:06]} 46. Kc4 {[%emt 0:00:07]} Rg3 {[%emt 0:00:43]} 47. Bf5 {[%emt 0:00:07] Weighted Error Value: White=0.07 (flawless) /Black=0.52} 1-0

[Event "1000GM Memorial Day NY IM-C 2023"]
[Site "New York"]
[Date "2023.05.27"]
[Round "3.1"]
[White "Zumsande, Martin"]
[Black "Sazci, Bilgen"]
[Result "1/2-1/2"]
[ECO "B18"]
[WhiteElo "2454"]
[BlackElo "1827"]
[Annotator "TA"]
[PlyCount "43"]
[EventDate "2023.05.23"]
[EventType "tourn"]
[EventCountry "USA"]
[SourceTitle "playchess.com"]
[Source "ChessBase"]
[SourceQuality "1"]
[TimeControl "5400+30"]

{[%evp 9,43,16,29,26,41,23,23,18,28,21,17,13,43,41,52,26,45,50,41,16,60,0,0,0,0,8,0,0,8,1,1,-9,0,0,0,0]} 1. e4 {[%emt 0:00:02]} c6 {[%emt 0:00:22]} 2. d4 {[%emt 0:00:21]} d5 {[%emt 0:00:10]} 3. Nc3 {[%emt 0:00:59]} dxe4 {[%emt 0:00:19]} 4. Nxe4 {[%emt 0:00:11]} Bf5 {[%emt 0:01:03]} 5. Qf3 {[%emt 0:00:14]} Bxe4 {[%emt 0:01:14]} 6. Qxe4 {[%emt 0:00:06] B18: Classical Caro-Kann: 4...Bf5 sidelines.} Nf6 {[%emt 0:00:14]} 7. Qd3 {[%emt 0:04:19]} e6 {[%emt 0:01:19]} 8. Nf3 {[%emt 0:00:26] White has an edge.} Be7 {[%emt 0:00:48]} 9. g3 {[%emt 0:02:48]} O-O {[%emt 0:01:32]} 10. Bg2 {[%emt 0:00:17]} Nbd7 {[%emt 0:00:32]} 11. O-O {[%emt 0:00:35]} Qb6 {[%emt 0:03:47] [#]} 12. c4 $146 {[%emt 0:06:49]} ({Predecessor:} 12. b3 Rad8 13. Bb2 Rfe8 14. h3 Bd6 15. c4 Bb8 16. Rad1 Qa5 17. Qb1 Nf8 18. Rfe1 {1-0 Castro,R-Teixeira,F (1810) Jatai Kativa IRT 2012 (3)}) 12... Rfd8 {[%emt 0:03:17]} 13. Qe2 {[%emt 0:06:59]} c5 {[%emt 0:04:30]} 14. Be3 {[%emt 0:03:11]} Ng4 {[%emt 0:03:21]} 15. Bg5 {[%emt 0:09:16]} (15. b4 $1 $14) 15... Bxg5 $11 {[%emt 0:02:11] The position is equal.} 16. Nxg5 {[%emt 0:00:08]} Ngf6 {[%emt 0:00:47]} 17. dxc5 {[%emt 0:06:01]} Nxc5 {[%emt 0:04:01]} 18. Rfd1 {[%emt 0:04:20]} a5 {[%emt 0:13:53]} 19. Nf3 {[%emt 0:03:56]} h6 {[%emt 0:02:15]} 20. Ne5 {[%emt 0:01:57]} Rxd1+ {[%emt 0:02:43]} 21. Rxd1 {[%emt 0:00:06]} Rd8 {[%emt 0:00:16] [#] Wards off Qd2. Threatens to win with ...Rxd1+.} 22. Rd2 {[%emt 0:12:11] Weighted Error Value: White=0.10 (very precise) /Black=0.08 (flawless)} 1/2-1/2

[Event "1000GM Memorial Day NY IM-C 2023"]
[Site "New York"]
[Date "2023.05.27"]
[Round "3.2"]
[White "Lee, Megan"]
[Black "Mahajan, Rushaan"]
[Result "1-0"]
[ECO "C54"]
[WhiteElo "2261"]
[BlackElo "2279"]
[Annotator "TA"]
[PlyCount "98"]
[EventDate "2023.05.23"]
[EventType "tourn"]
[EventCountry "USA"]
[SourceTitle "playchess.com"]
[Source "ChessBase"]
[SourceQuality "1"]
[TimeControl "5400+30"]

{[%evp 11,98,13,18,18,34,12,23,-18,-20,-25,-1,-46,0,0,0,0,0,0,0,0,0,0,22,0,0,0,0,0,0,0,0,0,2,2,1,0,0,0,0,0,0,0,0,0,0,0,0,-17,0,0,0,0,45,44,43,5,62,55,190,196,205,201,201,166,183,167,175,173,218,217,260,260,300,260,285,292,491,192,302,254,315,315,537,531,674,400,674,642,583]} 1. e4 {[%emt 0:00:01]} e5 {[%emt 0:04:48]} 2. Nf3 {[%emt 0:00:05]} Nc6 {[%emt 0:00:03]} 3. Bc4 {[%emt 0:00:04]} Bc5 {[%emt 0:00:05]} 4. c3 {[%emt 0:00:08]} Nf6 {[%emt 0:00:04]} 5. d3 {[%emt 0:00:23]} d6 {[%emt 0:01:43]} 6. O-O {[%emt 0:00:56]} a6 {[%emt 0:00:50]} 7. a4 {[%emt 0:00:26] C54: Giuoco Piano: 4 c3 Nf6, main lines with 5 d4 and 5 d3.} Ba7 {[%emt 0:00:53]} 8. Re1 {[%emt 0:05:06]} h6 {[%emt 0:00:21]} 9. h3 {[%emt 0:02:57] White has an edge.} g5 {[%emt 0:02:59]} 10. Nh2 {[%emt 0:05:48] [#]} g4 $1 {[%emt 0:13:23]} 11. hxg4 {[%emt 0:03:49]} (11. Nxg4 Nxg4) 11... Rg8 {[%emt 0:00:57]} (11... h5 $1 $15 {deserves consideration.} 12. g5 Ng4) 12. Be3 {[%emt 0:09:22]} (12. Bxh6 $2 {is the wrong capture.} Nxg4 13. Be3 (13. Nxg4 $2 Bxg4 14. Qd2 Bf3 $19) 13... Bxe3 14. Rxe3 Nxe3 15. fxe3 Qh4 $19) 12... Nxg4 {[%emt 0:07:08] [#]} 13. Bxa7 $146 {[%emt 0:05:54]} ({Predecessor:} 13. Qf3 Rg7 14. Bxa7 Nxh2 15. Qh5 Ng4 16. Be3 Qf6 17. Nd2 Bd7 18. Kf1 O-O-O 19. Nf3 {0-1 Hardaway,B (2394)-Ringoir,T (2490) Charlotte CCCSA Spring GM-A 2023 (7)}) 13... Nxh2 {[%emt 0:01:38]} 14. Qh5 {[%emt 0:05:05][%csl Gc4][%cal Rh5f7]} Qf6 {[%emt 0:00:09]} 15. Qxh2 {[%emt 0:01:20] Strongly threatening Be3.} Nxa7 {[%emt 0:00:48]} 16. Nd2 {[%emt 0:04:10][%cal Bb1d2,Bd2f1,Bf1e3,Be3d5][%mdl 32]} Bg4 {[%emt 0:09:17]} 17. Nf1 {[%emt 0:03:53]} O-O-O {[%emt 0:05:19]} 18. Ne3 {[%emt 0:02:20] aiming for Nxg4.} h5 {[%emt 0:09:16]} 19. Nd5 {[%emt 0:03:54]} Qg5 {[%emt 0:03:05]} 20. f4 {[%emt 0:05:32]} exf4 {[%emt 0:00:16]} 21. Qxf4 {[%emt 0:00:25]} Be6 {[%emt 0:02:56][%csl Gg8][%cal Rg5g2]} 22. Qxg5 {[%emt 0:01:52]} Rxg5 {[%emt 0:00:01]} 23. Rf1 {[%emt 0:02:32]} Nc6 {[%emt 0:00:44]} 24. d4 {[%emt 0:03:12] Inhibits Ne5.} Rdg8 {[%emt 0:03:31]} 25. Rf2 {[%emt 0:01:02]} h4 {[%emt 0:00:07]} 26. Kh2 {[%emt 0:09:19]} Rg3 {[%emt 0:02:25]} 27. Bf1 {[%emt 0:02:34]} Bxd5 {[%emt 0:02:38]} 28. exd5 {[%emt 0:00:02]} Ne7 {[%emt 0:00:07]} 29. c4 {[%emt 0:03:35]} (29. Bc4 $5 {[%cal Ra1e1]}) 29... R8g7 {[%emt 0:09:04]} 30. Re1 {[%emt 0:03:05]} f5 {[%emt 0:01:57]} 31. Rf4 {[%emt 0:05:28]} R3g4 {[%emt 0:00:28]} 32. Rxg4 {[%emt 0:00:55]} fxg4 $14 {[%emt 0:00:01][%mdl 4096] Endgame KRB-KRN} 33. Bd3 {[%emt 0:00:18] Prevents Nf5} Kd7 {[%emt 0:09:49]} (33... b5 $11) 34. Re4 {[%emt 0:01:11] White is more active.} Rg5 {[%emt 0:06:50] [#] Loses the game.} (34... h3 $14) 35. Be2 $1 $18 {[%emt 0:05:22]} g3+ {[%emt 0:01:28]} 36. Kh3 {[%emt 0:00:01]} Ng6 {[%emt 0:00:54]} 37. Bg4+ {[%emt 0:00:24]} Kd8 {[%emt 0:00:03]} 38. Be6 {[%emt 0:00:44]} a5 {[%emt 0:02:49]} 39. Bf7 {[%emt 0:06:46]} Ne7 {[%emt 0:00:14]} 40. Kxh4 {[%emt 0:00:00]} Rg7 {[%emt 0:00:03]} 41. Be6 {[%emt 0:00:00]} Ng6+ {[%emt 0:00:38]} 42. Kh5 {[%emt 0:00:00]} ({Much less strong is} 42. Kxg3 $6 Ne5+ 43. Kf4 Nd3+ 44. Kf5 Rxg2 $16) 42... Ne7 {[%emt 0:00:57]} 43. Rf4 {[%emt 0:00:00][%cal Rf4f8]} c6 $2 {[%emt 0:00:22]} (43... Rh7+ 44. Kg5 Ke8) 44. dxc6 $2 {[%emt 0:00:39]} (44. Rf8+ Kc7 45. Re8 Rh7+ 46. Kg5) 44... bxc6 {[%emt 0:00:36]} (44... Nxc6 {was necessary.} 45. Kh4 Kc7) 45. d5 {[%emt 0:00:01] And now Rf8+ would win.} Rh7+ {[%emt 0:00:36]} 46. Kg5 {[%emt 0:00:25] Rf8+ would be deadly.} cxd5 $2 {[%emt 0:00:27]} (46... Kc7 47. Rh4 Rxh4 48. Kxh4 cxd5 49. Bxd5 Nf5+ 50. Kg4 Nd4 51. Kxg3 Kd7) 47. cxd5 {[%emt 0:00:07]} ({Stronger than} 47. Bxd5 Nxd5 48. cxd5 Rh2 $11) 47... Rh2 {[%emt 0:00:19]} 48. Rf8+ {[%emt 0:00:39]} Kc7 {[%emt 0:00:01]} 49. Kf6 {[%emt 0:00:37]} Rh7 {[%emt 0:01:05] Weighted Error Value: White=0.12 (very precise) /Black=0.31} 1-0

[Event "1000GM Memorial Day NY IM-C 2023"]
[Site "New York"]
[Date "2023.05.27"]
[Round "3.3"]
[White "Reiss, Aiden"]
[Black "Moor, Nathaniel Philip"]
[Result "1-0"]
[ECO "C88"]
[WhiteElo "2138"]
[BlackElo "2185"]
[Annotator "TA"]
[PlyCount "61"]
[EventDate "2023.05.23"]
[EventType "tourn"]
[EventCountry "USA"]
[SourceTitle "playchess.com"]
[Source "ChessBase"]
[SourceQuality "1"]
[TimeControl "5400+30"]

{[%evp 24,61,5,9,35,12,19,10,91,-17,-10,-60,-66,-33,14,-128,-126,-192,-185,-173,-144,-160,-55,-226,-226,-217,-220,-232,-235,-228,-116,-262,-205,-208,-171,-222,706,692,2071,1852]} 1. e4 {[%emt 0:03:09]} e5 {[%emt 0:00:05]} 2. Nf3 {[%emt 0:00:04]} Nc6 {[%emt 0:00:03]} 3. Bb5 {[%emt 0:00:09][%cal Bf1b5,Bb5a4,Ba4b3,Bb3a2][%mdl 32]} a6 {[%emt 0:00:05]} 4. Ba4 {[%emt 0:00:02]} Nf6 {[%emt 0:00:04]} 5. O-O {[%emt 0:00:09]} Be7 {[%emt 0:00:02]} 6. Re1 {[%emt 0:00:05]} b5 {[%emt 0:00:04]} 7. Bb3 {[%emt 0:00:02]} O-O {[%emt 0:00:05]} 8. a4 {[%emt 0:00:09]} Bb7 {[%emt 0:00:06]} 9. d3 {[%emt 0:04:03]} d6 {[%emt 0:00:30]} 10. Nc3 {[%emt 0:00:30]} Na5 {[%emt 0:00:30]} 11. Ba2 {[%emt 0:00:30]} b4 {[%emt 0:00:30]} 12. Ne2 {[%emt 0:00:30]} Rb8 {[%emt 0:00:30]} 13. Ng3 {[%emt 0:00:30]} Bc8 {[%emt 0:00:30] C88: Closed Ruy Lopez: Anti-Marshall Systems.} 14. c3 {[%emt 0:00:30]} c5 {[%emt 0:00:30]} 15. d4 {[%emt 0:00:30]} Qc7 {[%emt 0:00:30] [#]} (15... bxc3 $11 {keeps the balance.} 16. bxc3 Qc7) 16. Nh4 $146 {[%emt 0:00:30]} (16. cxb4 $1 $16 {dxe5 is the strong threat.} Rxb4 17. dxe5 dxe5 18. Bd2) ({Predecessor:} 16. cxb4 cxb4 17. Bg5 b3 18. Rc1 Qb6 19. Bb1 Nc6 20. d5 Nd4 21. Nxd4 Qxd4 22. Qxd4 exd4 {1-0 Ter Sahakyan,S (2637)-Erigaisi,A (2629) Wch Blitz Warsaw 2021 (4)}) 16... g6 {[%emt 0:00:30]} 17. Bg5 {[%emt 0:00:30]} (17. Nf3 $11) 17... b3 {[%emt 0:00:30]} 18. Bb1 {[%emt 0:00:30]} c4 {[%emt 0:00:30]} (18... Bg4 $15 19. Nf3 cxd4 20. cxd4 Nc6) 19. Qf3 {[%emt 0:00:30]} (19. Nf3 $11) 19... Ng4 $17 {[%emt 0:34:50][%mdl 64] Discovered Attack} 20. Nhf5 {[%emt 0:28:07]} Bxg5 $19 {[%emt 0:28:28]} (20... gxf5 21. Nxf5 Bxg5 22. Qxg4 $11) 21. Qxg4 {[%emt 0:00:07]} f6 {[%emt 0:00:25]} (21... gxf5 22. Qxg5+ Kh8 23. Qf6+ (23. exf5 f6 $18) 23... Kg8 24. Nh5 fxe4 25. Qg7#) 22. h4 {[%emt 0:02:32]} Bf4 {[%emt 0:02:38]} (22... gxf5 23. exf5 h6 24. hxg5 hxg5 25. Be4 $18) ({Better is} 22... Bd2 $1 $17 {[%cal Rd2e1]} 23. Rd1 Bf4) 23. h5 $2 {[%emt 0:00:30]} (23. Ne2 $1 $15) 23... Bg5 {[%emt 0:00:16]} 24. hxg6 {[%emt 0:00:46]} hxg6 {[%emt 0:00:02]} 25. Rd1 {[%emt 0:05:12]} gxf5 {[%emt 0:01:03]} 26. exf5 {[%emt 0:00:17][%cal Be4f5,Bf5f6][%mdl 32]} Bb7 {[%emt 0:04:13]} (26... Nc6 $1 $19 {Strongly threatening ...d5.} 27. Ne4 exd4 28. Nxg5 Qg7 {[%mdl 64] Pin}) 27. Ne4 {[%emt 0:00:51]} (27. dxe5 $17 dxe5 28. Be4) 27... Rbe8 {[%emt 0:07:32]} 28. dxe5 {[%emt 0:01:43]} dxe5 {[%emt 0:00:32]} ({Worse is} 28... Bxe4 29. exf6 Rxf6 30. Bxe4 $11) 29. Nxg5 {[%emt 0:04:11]} (29. Kf1 $142) 29... fxg5 $4 {[%emt 0:00:06][%mdl 8192] [#]} (29... Qg7 $19 30. Be4 Qxg5) 30. f6 $1 $18 {[%emt 0:01:13]} e4 {[%emt 0:04:39] [#]} 31. Rd7 $1 {[%emt 0:00:44] Quite a comeback for White.   Weighted Error Value: White=0.48/Black=0.34} ({Less strong is} 31. Qxg5+ Kh8 $11) 1-0